lending/lending_fUSD_20241229
["ID","MTS","AMOUNT","RATE_DAILY","PERIOD"]
[347070987,1735489864697,-500.0,0.00012535,2]
[347070988,1735489864707,-500.0,0.00012535,2]
[347070989,1735489864716,-2098.83,0.00012535,2]
[347070990,1735489864725,-896.49,0.00012535,2]
[347070991,1735489864735,-1070.04,0.00012535,2]
[347070992,1735489864745,-794.28,0.00012535,2]
[347070993,1735489864761,-500.0,0.00012535,2]
[347070994,1735489864781,-987.86,0.00012535,2]
[347070995,1735489864791,-1547.13,0.00012535,2]
[347070996,1735489864803,-676.15,0.00012535,2]
[347070997,1735489864813,-1819.79,0.00012535,2]
[347070998,1735489864825,-151.0,0.00012535,2]
[347070999,1735489864836,-1109.01,0.00012535,2]
[347071000,1735489864846,-1601.3,0.00012535,2]
[347071001,1735489864855,-1018.37,0.00012535,2]
[347071002,1735489864866,-1282.75,0.00012535,2]
[347071003,1735489864875,-247.728672,0.00012535,2]
[347071004,1735489864886,-1716.82,0.00012535,2]
[347071005,1735489864896,-1084.55,0.00012535,2]
[347071006,1735489864906,-500.0,0.00012535,2]
[347071007,1735489864917,-936.71,0.00012535,2]
[347071008,1735489864927,-712.64,0.00012535,2]
[347071009,1735489864936,-837.44,0.00012535,2]
[347071010,1735489864946,-1790.34,0.00012535,2]
[347071011,1735489864956,-966.27,0.00012535,2]
[347071012,1735489864966,-702.86,0.00012535,2]
[347071013,1735489864977,-1154.03,0.00012535,2]
[347071014,1735489864987,-911.82,0.00012535,2]
[347071015,1735489864997,-786.78,0.00012535,2]
[347071016,1735489865007,-991.76,0.00012535,2]
[347071017,1735489865017,-1789.48,0.00012535,2]
[347071018,1735489865028,-327.02537615,0.00012535,2]
[347071019,1735489865039,-500.0,0.00012535,2]
[347071020,1735489865049,-538.54,0.00012535,2]
[347071021,1735489865059,-918.79,0.00012535,2]
[347071022,1735489865070,-743.62,0.00012535,2]
[347071023,1735489865080,-528.78,0.00012535,2]
[347071024,1735489865090,-1250.82,0.00012535,2]
[347071025,1735489865100,-871.83,0.00012535,2]
[347071026,1735489865110,-2412.7,0.00012535,2]
[347071027,1735489865119,-1819.03,0.00012535,2]
[347071028,1735489865129,-2491.36,0.00012535,2]
[347071029,1735489865139,-420.0,0.00012562,2]
[347071030,1735489865149,-151.15,0.00012587,2]
[347071031,1735489865159,-700.0,0.000126,4]
[347071032,1735489865168,-501.01292278,0.00012621,2]
[347071033,1735489865177,-2067.06001,0.0001263,2]
[347071034,1735489865187,-1805.92,0.00012632,2]
[347071035,1735489865197,-5215.12,0.00012632,2]
[347071036,1735489865207,-2890.03,0.00012632,2]
[347071037,1735489865217,-4902.25,0.00012632,2]
[347071038,1735489865228,-500.0,0.00012632,2]
[347071039,1735489865238,-1801.91,0.00012632,2]
[347071040,1735489865247,-3264.87,0.00012632,2]
[347071041,1735489865257,-1526.95,0.00012632,2]
[347071042,1735489865266,-793.71,0.00012632,2]
[347071043,1735489865276,-4566.76,0.00012632,2]
[347071044,1735489865286,-4837.94,0.00012632,2]
[347071045,1735489865295,-1940.64,0.00012632,2]
[347071046,1735489865305,-1046.88,0.00012632,2]
[347071047,1735489865315,-17156.74,0.00012632,2]
[347071048,1735489865325,-10143.96,0.00012632,2]
[347071049,1735489865335,-4108.35,0.00012632,2]
[347071050,1735489865344,-2730.04,0.00012632,2]
[347071051,1735489865354,-2556.02,0.00012632,2]
[347071052,1735489865363,-1530.31,0.00012632,2]
[347071053,1735489865373,-6586.15,0.00012632,2]
[347071054,1735489865383,-4366.33,0.00012632,2]
[347071055,1735489865393,-681.34,0.00012632,2]
[347071056,1735489865402,-701.38,0.00012632,2]
[347071057,1735489865412,-500.0,0.00012632,2]
[347071058,1735489865422,-2019.15,0.00012632,2]
[347071059,1735489865432,-500.0,0.00012632,2]
[347071060,1735489865443,-1697.84,0.00012632,2]
[347071061,1735489865452,-3038.02,0.00012632,2]
[347071062,1735489865462,-500.0,0.00012632,2]
[347071063,1735489865471,-852.73,0.00012632,2]
[347071064,1735489865482,-500.0,0.00012632,2]
[347071065,1735489865491,-1431.9,0.00012632,2]
[347071066,1735489865501,-500.0,0.00012632,2]
[347071067,1735489865510,-500.0,0.00012632,2]
[347071068,1735489865520,-896.87,0.00012632,2]
[347071069,1735489865529,-3588.08,0.00012632,2]
[347071070,1735489865539,-500.0,0.00012633,2]
[347071071,1735489865549,-580.22,0.00012633,2]
[347071072,1735489865558,-2281.68,0.00012633,2]
[347071073,1735489865568,-1469.79,0.00012633,2]
[347071074,1735489865578,-1662.07,0.00012633,2]
[347071075,1735489865587,-500.0,0.00012633,2]
[347071076,1735489865598,-1592.56,0.00012633,2]
[347071077,1735489865610,-500.0,0.00012633,2]
[347071078,1735489865620,-459.27793558,0.00012633,2]
[347071079,1735489865630,-3558.18,0.00012633,2]
[347071080,1735489865639,-643.7,0.00012633,2]
[347071081,1735489865649,-988.16,0.00012633,2]
[347071082,1735489865659,-500.0,0.00012633,2]
[347071083,1735489865668,-1652.5,0.00012633,2]
[347071084,1735489865678,-517.89,0.00012633,2]
[347071085,1735489865688,-900.7,0.00012633,2]
[347071086,1735489865698,-5047.81,0.00012633,2]
[347071087,1735489865707,-674.01,0.00012633,2]
[347071088,1735489865717,-500.0,0.00012633,2]
[347071089,1735489865727,-531.9,0.00012633,2]
[347071090,1735489865737,-603.5,0.00012633,2]
[347071091,1735489865750,-1051.42,0.00012633,2]
[347071092,1735489865761,-151.0,0.00012633,2]
[347071093,1735489865770,-1024.0,0.00012633,2]
[347071094,1735489865779,-3190.14,0.00012633,2]
[347071095,1735489865790,-833.89,0.00012633,2]
[347071096,1735489865800,-1151.35,0.00012633,2]
[347071097,1735489865810,-756.97,0.00012633,2]
[347071098,1735489865821,-4647.61,0.00012633,2]
[347071099,1735489865831,-500.0,0.00012633,2]
[347071100,1735489865840,-500.0,0.00012633,2]
[347071101,1735489865850,-3472.39,0.00012633,2]
[347071102,1735489865860,-500.0,0.00012633,2]
[347071103,1735489865870,-500.0,0.00012633,2]
[347071104,1735489865880,-190.874477,0.00012633,2]
[347071105,1735489865890,-1011.11,0.00012633,2]
[347071106,1735489865899,-8442.531517,0.00012633,2]
[347071107,1735489865909,-2584.04,0.00012633,2]
[347071108,1735489865918,-8306.353808,0.00012633,2]
[347071109,1735489865928,-2630.44,0.00012633,2]
[347071110,1735489865938,-1068.1,0.00012633,2]
[347071111,1735489865947,-1103.17,0.00012633,2]
[347071112,1735489865957,-18294.83,0.00012633,2]
[347071113,1735489865966,-1002.9,0.00012633,2]
[347071114,1735489865976,-3065.29,0.00012633,2]
[347071115,1735489865986,-500.0,0.00012633,2]
[347071116,1735489865996,-2185.03,0.00012633,2]
[347071117,1735489866005,-1272.65,0.00012633,2]
[347071118,1735489866015,-9894.2,0.00012633,2]
[347071119,1735489866025,-500.0,0.00012633,2]
[347071120,1735489866034,-3029.99,0.00012633,2]
[347071121,1735489866044,-1886.48,0.00012633,2]
[347071122,1735489866054,-6076.11,0.00012633,2]
[347071123,1735489866064,-1453.24,0.00012633,2]
[347071124,1735489866074,-1635.32,0.00012633,2]
[347071125,1735489866084,-1891.39,0.00012633,2]
[347071126,1735489866093,-1542.14,0.00012633,2]
[347071127,1735489866103,-3536.31,0.00012633,2]
[347071128,1735489866113,-1072.15,0.00012633,2]
[347071129,1735489866122,-839.13,0.00012633,2]
[347071130,1735489866131,-500.0,0.00012633,2]
[347071131,1735489866141,-1665.61,0.00012633,2]
[347071132,1735489866151,-500.0,0.00012633,2]
[347071133,1735489866161,-11603.09,0.00012633,2]
[347071134,1735489866173,-1447.4,0.00012633,2]
[347071135,1735489866183,-2519.46,0.00012633,2]
[347071136,1735489866193,-1858.03,0.00012633,2]
[347071137,1735489866203,-789.12,0.00012634,2]
[347071138,1735489866212,-500.0,0.00012634,2]
[347071139,1735489866222,-640.3,0.00012634,2]
[347071140,1735489866231,-500.0,0.00012634,2]
[347071141,1735489866241,-682.07,0.00012634,2]
[347071142,1735489866251,-500.0,0.00012634,2]
[347071143,1735489866260,-500.0,0.00012634,2]
[347071144,1735489866269,-500.0,0.00012634,2]
[347071145,1735489866279,-742.88,0.00012634,2]
[347071146,1735489866289,-500.0,0.00012634,2]
[347071147,1735489866299,-500.0,0.00012634,2]
[347071148,1735489866308,-578.48,0.00012634,2]
[347071149,1735489866318,-969.72,0.00012634,2]
[347071150,1735489866327,-766.29,0.00012634,2]
[347071151,1735489866337,-500.0,0.00012634,2]
[347071152,1735489866347,-500.0,0.00012634,2]
[347071153,1735489866357,-500.0,0.00012634,2]
[347071154,1735489866367,-500.0,0.00012634,2]
[347071155,1735489866376,-500.0,0.00012634,2]
[347071156,1735489866386,-950.22,0.00012634,2]
[347071157,1735489866396,-500.0,0.00012634,2]
[347071158,1735489866405,-248.39393315,0.00012634,2]
[347071159,1735489866415,-500.0,0.00012634,2]
[347071160,1735489866425,-500.0,0.00012634,2]
[347071161,1735489866434,-202.70851465,0.00012634,2]
[347071162,1735489866444,-500.0,0.00012634,2]
[347071163,1735489866454,-500.0,0.00012634,2]
[347071164,1735489866463,-500.0,0.00012634,2]
[347071165,1735489866473,-912.48,0.00012634,2]
[347071166,1735489866483,-500.0,0.00012634,2]
[347071167,1735489866492,-661.25,0.00012634,2]
[347071168,1735489866501,-500.0,0.00012634,2]
[347071169,1735489866511,-500.0,0.00012634,2]
[347071170,1735489866520,-500.0,0.00012634,2]
[347071171,1735489866530,-500.0,0.00012634,2]
[347071172,1735489866540,-1210.33,0.00012634,2]
[347071173,1735489866550,-500.0,0.00012634,2]
[347071174,1735489866559,-500.0,0.00012634,2]
[347071175,1735489866569,-500.0,0.00012634,2]
[347071176,1735489866579,-500.0,0.00012634,2]
[347071177,1735489866588,-500.0,0.00012634,2]
[347071178,1735489866598,-502.31,0.00012634,2]
[347071179,1735489866608,-500.0,0.00012634,2]
[347071180,1735489866618,-500.0,0.00012634,2]
[347071181,1735489866627,-500.0,0.00012634,2]
[347071182,1735489866637,-500.0,0.00012634,2]
[347071183,1735489866647,-500.0,0.00012634,2]
[347071184,1735489866656,-500.0,0.00012634,2]
[347071185,1735489866666,-500.0,0.00012634,2]
[347071186,1735489866676,-500.0,0.00012634,2]
[347071187,1735489866685,-644.59,0.00012634,2]
[347071188,1735489866694,-500.0,0.00012634,2]
[347071189,1735489866704,-500.0,0.00012634,2]
[347071190,1735489866713,-500.0,0.00012634,2]
[347071191,1735489866723,-1137.54,0.00012634,2]
[347071192,1735489866733,-153.650383,0.00012634,2]
[347071193,1735489866743,-500.0,0.00012634,2]
[347071194,1735489866753,-500.0,0.00012634,2]
[347071195,1735489866764,-503.73790103,0.00012634,2]
[347071196,1735489866774,-151.0,0.00012634,2]
[347071197,1735489866783,-814.21,0.00012634,2]
[347071198,1735489866793,-151.0,0.00012634,2]
[347071199,1735489866803,-500.0,0.00012634,2]
[347071200,1735489866813,-500.0,0.00012634,2]
[347071201,1735489866823,-717.64,0.00012634,2]
[347071202,1735489866834,-1253.64,0.00012634,2]
[347071203,1735489866843,-500.0,0.00012634,2]
[347071204,1735489866853,-500.0,0.00012634,2]
[347071205,1735489866863,-508.54,0.00012634,2]
[347071206,1735489866873,-151.0,0.00012634,2]
[347071207,1735489866883,-151.0,0.00012634,2]
[347071208,1735489866892,-500.0,0.00012634,2]
[347071209,1735489866901,-500.0,0.00012634,2]
[347071210,1735489866911,-500.0,0.00012634,2]
[347071211,1735489866920,-500.0,0.00012634,2]
[347071212,1735489866930,-500.0,0.00012634,2]
[347071213,1735489866939,-500.0,0.00012634,2]
[347071214,1735489866949,-500.0,0.00012634,2]
[347071215,1735489866958,-500.0,0.00012634,2]
[347071216,1735489866967,-1130.46,0.00012634,2]
[347071217,1735489866976,-623.05,0.00012634,2]
[347071218,1735489866986,-500.0,0.00012634,2]
[347071219,1735489866996,-500.0,0.00012634,2]
[347071220,1735489867006,-913.53,0.00012634,2]
[347071221,1735489867191,-1090.0,0.00012634,2]
[347071222,1735489867207,-605.54,0.00012634,2]
[347071223,1735489867217,-500.0,0.00012634,2]
[347071224,1735489867227,-626.31,0.00012634,2]
[347071225,1735489867237,-500.0,0.00012634,2]
[347071226,1735489867247,-500.0,0.00012634,2]
[347071227,1735489867257,-517.37,0.00012634,2]
[347071228,1735489867267,-500.0,0.00012634,2]
[347071229,1735489867276,-500.0,0.00012634,2]
[347071230,1735489867286,-500.0,0.00012634,2]
[347071231,1735489867296,-500.0,0.00012634,2]
[347071232,1735489867305,-687.05,0.00012634,2]
[347071233,1735489867315,-500.0,0.00012634,2]
[347071234,1735489867324,-500.0,0.00012634,2]
[347071235,1735489867334,-549.65,0.00012634,2]
[347071236,1735489867344,-500.0,0.00012634,2]
[347071237,1735489867353,-500.0,0.00012634,2]
[347071238,1735489867362,-853.21,0.00012634,2]
[347071239,1735489867372,-500.0,0.00012634,2]
[347071240,1735489867382,-500.0,0.00012634,2]
[347071241,1735489867392,-500.0,0.00012634,2]
[347071242,1735489867401,-500.0,0.00012634,2]
[347071243,1735489867410,-500.0,0.00012634,2]
[347071244,1735489867419,-500.0,0.00012634,2]
[347071245,1735489867429,-500.0,0.00012634,2]
[347071246,1735489867439,-500.0,0.00012634,2]
[347071247,1735489867449,-529.86,0.00012634,2]
[347071248,1735489867459,-725.9,0.00012634,2]
[347071249,1735489867468,-500.0,0.00012634,2]
[347071250,1735489867477,-500.0,0.00012634,2]
[347071251,1735489867487,-1263.22,0.00012634,2]
[347071252,1735489867496,-500.0,0.00012634,2]
[347071253,1735489867506,-500.0,0.00012634,2]
[347071254,1735489867516,-500.0,0.00012634,2]
[347071255,1735489867525,-500.0,0.00012634,2]
[347071256,1735489867535,-920.97,0.00012634,2]
[347071257,1735489867544,-500.0,0.00012634,2]
[347071258,1735489867555,-500.0,0.00012634,2]
[347071259,1735489867565,-500.0,0.00012634,2]
[347071260,1735489867575,-1244.8,0.00012634,2]
[347071261,1735489867585,-500.0,0.00012634,2]
[347071262,1735489867595,-784.27,0.00012634,2]
[347071263,1735489867604,-700.7,0.00012634,2]
[347071264,1735489867614,-500.0,0.00012634,2]
[347071265,1735489867624,-500.0,0.00012634,2]
[347071266,1735489867633,-503.37,0.00012634,2]
[347071267,1735489867643,-500.0,0.00012634,2]
[347071268,1735489867653,-500.0,0.00012634,2]
[347071269,1735489867662,-896.25,0.00012634,2]
[347071270,1735489867672,-1160.49,0.00012634,2]
[347071271,1735489867682,-500.0,0.00012634,2]
[347071272,1735489867691,-573.61,0.00012634,2]
[347071273,1735489867701,-500.0,0.00012634,2]
[347071274,1735489867710,-500.0,0.00012634,2]
[347071275,1735489867720,-1348.21,0.00012634,2]
[347071276,1735489867730,-500.0,0.00012634,2]
[347071277,1735489867739,-500.0,0.00012634,2]
[347071278,1735489867752,-500.0,0.00012634,2]
[347071279,1735489867762,-500.0,0.00012634,2]
[347071280,1735489867772,-548.05,0.00012634,2]
[347071281,1735489867781,-518.06,0.00012634,2]
[347071282,1735489867790,-500.0,0.00012634,2]
[347071283,1735489867800,-500.0,0.00012634,2]
[347071284,1735489867810,-235.09485717,0.00012634,2]
[347071285,1735489867819,-512.68143096,0.00012634,2]
[347071286,1735489867829,-500.0,0.00012634,2]
[347071287,1735489867840,-707.32,0.00012634,2]
[347071288,1735489867849,-500.0,0.00012634,2]
[347071289,1735489867859,-500.0,0.00012634,2]
[347071290,1735489867868,-761.45,0.00012634,2]
[347071291,1735489867878,-515.67,0.00012634,2]
[347071292,1735489867887,-500.0,0.00012634,2]
[347071293,1735489867897,-655.36,0.00012634,2]
[347071294,1735489867906,-500.0,0.00012634,2]
[347071295,1735489867916,-500.0,0.00012634,2]
[347071296,1735489867927,-1111.12,0.00012634,2]
[347071297,1735489867937,-504.53,0.00012634,2]
[347071298,1735489867946,-500.0,0.00012634,2]
[347071299,1735489867956,-500.0,0.00012634,2]
[347071300,1735489867966,-152.27944255,0.00012634,2]
[347071301,1735489867977,-500.0,0.00012634,2]
[347071302,1735489867986,-939.99,0.00012634,2]
[347071303,1735489867996,-500.0,0.00012634,2]
[347071304,1735489868006,-500.0,0.00012634,2]
[347071305,1735489868016,-500.0,0.00012634,2]
[347071306,1735489868026,-500.0,0.00012634,2]
[347071307,1735489868036,-670.09,0.00012634,2]
[347071308,1735489868046,-500.0,0.00012634,2]
[347071309,1735489868055,-500.0,0.00012634,2]
[347071310,1735489868065,-500.0,0.00012634,2]
[347071311,1735489868075,-500.0,0.00012634,2]
[347071312,1735489868085,-500.0,0.00012634,2]
[347071313,1735489868095,-626.86,0.00012634,2]
[347071314,1735489868105,-500.0,0.00012634,2]
[347071315,1735489868115,-151.0,0.00012635,2]
[347071316,1735489868124,-151.0,0.00012635,2]
[347071317,1735489868134,-500.0,0.00012635,2]
[347071318,1735489868144,-500.0,0.00012635,2]
[347071319,1735489868154,-500.0,0.00012635,2]
[347071320,1735489868163,-500.0,0.00012635,2]
[347071321,1735489868173,-500.0,0.00012635,2]
[347071322,1735489868183,-500.0,0.00012635,2]
[347071323,1735489868192,-614.11233809,0.00012635,2]
[347071324,1735489868202,-500.0,0.00012635,2]
[347071325,1735489868211,-500.0,0.00012635,2]
[347071326,1735489868221,-635.03,0.00012635,2]
[347071327,1735489868231,-500.0,0.00012635,2]
[347071328,1735489868240,-739.18,0.00012635,2]
[347071329,1735489868249,-500.0,0.00012635,2]
[347071330,1735489868259,-1016.64,0.00012635,2]
[347071331,1735489868268,-500.0,0.00012635,2]
[347071332,1735489868278,-3511.19,0.00012635,2]
[347071333,1735489868288,-831.8,0.00012635,2]
[347071334,1735489868298,-1944.21,0.00012635,2]
[347071335,1735489868308,-500.0,0.00012635,2]
[347071336,1735489868318,-500.0,0.00012635,2]
[347071337,1735489868327,-1205.91,0.00012635,2]
[347071338,1735489868337,-500.0,0.00012635,2]
[347071339,1735489868347,-3599.17,0.00012635,2]
[347071340,1735489868357,-500.0,0.00012635,7]
[347071341,1735489868367,-778.37,0.00012635,2]
[347071342,1735489868376,-764.39,0.00012635,2]
[347071343,1735489868386,-500.0,0.00012635,2]
[347071344,1735489868395,-858.22,0.00012635,2]
[347071345,1735489868404,-500.0,0.00012635,2]
[347071346,1735489868414,-500.0,0.00012635,2]
[347071347,1735489868424,-1078.5,0.00012635,2]
[347071348,1735489868434,-500.0,0.00012635,2]
[347071349,1735489868444,-2340.55,0.00012635,2]
[347071350,1735489868453,-1053.53,0.00012635,2]
[347071351,1735489868463,-531.43,0.00012635,2]
[347071352,1735489868473,-500.0,0.00012635,2]
[347071353,1735489868482,-1041.24,0.00012635,2]
[347071354,1735489868492,-151.0,0.00012635,2]
[347071355,1735489868501,-3755.9,0.00012635,2]
[347071356,1735489868511,-500.0,0.00012635,2]
[347071357,1735489868520,-500.0,0.00012635,2]
[347071358,1735489868529,-500.0,0.00012635,2]
[347071359,1735489868550,-679.8,0.00012635,2]
[347071360,1735489868560,-3562.83,0.00012635,2]
[347071361,1735489868571,-187.76232176,0.00012635,2]
[347071362,1735489868580,-500.0,0.00012635,2]
[347071363,1735489868591,-662.99,0.00012635,2]
[347071364,1735489868600,-522.29,0.00012635,2]
[347071365,1735489868610,-500.0,0.00012635,2]
[347071366,1735489868620,-530.53,0.00012635,2]
[347071367,1735489868630,-500.0,0.00012635,2]
[347071368,1735489868640,-2528.19,0.00012635,2]
[347071369,1735489868650,-500.0,0.00012635,2]
[347071370,1735489868659,-676.14,0.00012635,2]
[347071371,1735489868669,-500.0,0.00012635,2]
[347071372,1735489868678,-869.7,0.00012635,2]
[347071373,1735489868688,-500.0,0.00012635,2]
[347071374,1735489868698,-885.94,0.00012635,2]
[347071375,1735489868708,-500.0,0.00012635,2]
[347071376,1735489868717,-500.0,0.00012635,2]
[347071377,1735489868727,-151.0,0.00012635,2]
[347071378,1735489868737,-1387.4,0.00012635,2]
[347071379,1735489868746,-500.0,0.00012635,2]
[347071380,1735489868759,-500.0,0.00012635,2]
[347071381,1735489868769,-151.0,0.00012635,2]
[347071382,1735489868779,-707.66,0.00012635,2]
[347071383,1735489868789,-6099.26,0.00012635,2]
[347071384,1735489868800,-1169.27,0.00012635,2]
[347071385,1735489868810,-151.0,0.00012635,2]
[347071386,1735489868819,-732.6,0.00012635,2]
[347071387,1735489868832,-151.0,0.00012635,2]
[347071388,1735489868841,-500.0,0.00012635,2]
[347071389,1735489868851,-1183.54,0.00012635,2]
[347071390,1735489868861,-555.13,0.00012635,2]
[347071391,1735489868871,-151.0,0.00012635,2]
[347071392,1735489868880,-3945.51,0.00012635,2]
[347071393,1735489868890,-500.0,0.00012635,2]
[347071394,1735489868900,-500.0,0.00012635,2]
[347071395,1735489868909,-2075.97,0.00012635,2]
[347071396,1735489868919,-654.05,0.00012635,2]
[347071397,1735489868928,-1345.89,0.00012635,2]
[347071398,1735489868938,-14284.14,0.00012635,2]
[347071399,1735489868947,-1061.45,0.00012635,2]
[347071400,1735489868957,-500.0,0.00012635,2]
[347071401,1735489868966,-1058.29,0.00012635,2]
[347071402,1735489868976,-500.0,0.00012635,2]
[347071403,1735489868985,-500.0,0.00012635,2]
[347071404,1735489868995,-10147.36,0.00012635,2]
[347071405,1735489869006,-853.86,0.00012635,2]
[347071406,1735489869015,-1697.41,0.00012635,2]
[347071407,1735489869025,-500.0,0.00012635,2]
[347071408,1735489869034,-1107.23,0.00012635,2]
[347071409,1735489869044,-547.58,0.00012635,2]
[347071410,1735489869054,-1236.84,0.00012635,2]
[347071411,1735489869063,-500.0,0.00012635,2]
[347071412,1735489869074,-1403.26,0.00012635,2]
[347071413,1735489869083,-638.45,0.00012635,2]
[347071414,1735489869093,-954.3,0.00012635,2]
[347071415,1735489869102,-749.83,0.00012635,2]
[347071416,1735489869112,-1321.25,0.00012635,2]
[347071417,1735489869122,-3600.62,0.00012635,2]
[347071418,1735489869131,-750.79,0.00012635,2]
[347071419,1735489869141,-776.0,0.00012635,2]
[347071420,1735489869150,-2295.24,0.00012635,2]
[347071421,1735489869159,-743.69,0.00012635,2]
[347071422,1735489869169,-637.29,0.00012635,2]
[347071423,1735489869178,-528.46,0.00012635,2]
[347071424,1735489869188,-16509.04,0.00012635,2]
[347071425,1735489869198,-1355.28,0.00012635,2]
[347071426,1735489869207,-2104.69,0.00012635,2]
[347071427,1735489869217,-893.81,0.00012635,2]
[347071428,1735489869227,-773.78,0.00012635,2]
[347071429,1735489869236,-500.0,0.00012635,2]
[347071430,1735489869245,-890.01,0.00012635,2]
[347071431,1735489869255,-1251.31,0.00012635,2]
[347071432,1735489869265,-500.0,0.00012635,2]
[347071433,1735489869275,-236.902947,0.00012635,2]
[347071434,1735489869287,-236.902947,0.00012635,2]
[347071435,1735489869310,-500.0,0.00012635,2]
[347071436,1735489869319,-909.43,0.00012635,2]
[347071437,1735489869329,-500.0,0.00012635,2]
[347071438,1735489869338,-1051.79,0.00012635,2]
[347071439,1735489869348,-1988.73,0.00012635,2]
[347071440,1735489869357,-500.0,0.00012635,2]
[347071441,1735489869366,-1184.67,0.00012635,2]
[347071442,1735489869375,-500.0,0.00012635,2]
[347071443,1735489869385,-2308.07,0.00012635,2]
[347071444,1735489869395,-151.0,0.00012635,2]
[347071445,1735489869405,-500.0,0.00012635,2]
[347071446,1735489869414,-705.54,0.00012635,2]
[347071447,1735489869424,-151.0,0.00012635,2]
[347071448,1735489869433,-500.0,0.00012635,2]
[347071449,1735489869443,-1060.41,0.00012635,2]
[347071450,1735489869452,-184.38878,0.00012635,2]
[347071451,1735489869462,-184.38878,0.00012635,2]
[347071452,1735489869472,-2299.51,0.00012635,2]
[347071453,1735489869481,-151.0,0.00012635,2]
[347071454,1735489869491,-151.0,0.00012635,2]
[347071455,1735489869500,-851.46,0.00012635,2]
[347071456,1735489869510,-500.0,0.00012635,2]
[347071457,1735489869519,-1853.38,0.00012635,2]
[347071458,1735489869529,-964.97,0.00012635,2]
[347071459,1735489869539,-1075.86,0.00012635,2]
[347071460,1735489869548,-500.0,0.00012635,2]
[347071461,1735489869559,-2115.26,0.00012635,2]
[347071462,1735489869568,-151.0,0.00012635,2]
[347071463,1735489869578,-151.0,0.00012635,2]
[347071464,1735489869587,-1352.22,0.00012635,2]
[347071465,1735489869598,-500.0,0.00012635,2]
[347071466,1735489869607,-639.4,0.00012635,2]
[347071467,1735489869617,-849.33,0.00012635,2]
[347071468,1735489869687,-151.0,0.00012636,2]
[347071469,1735489869697,-500.0,0.00012636,2]
[347071470,1735489869707,-500.0,0.00012636,2]
[347071471,1735489869716,-3181.36,0.00012636,2]
[347071472,1735489869726,-6329.31,0.00012636,2]
[347071473,1735489869735,-3277.49,0.00012636,2]
[347071474,1735489869745,-151.0,0.00012636,2]
[347071475,1735489869758,-12312.34,0.00012636,2]
[347071476,1735489869767,-500.0,0.00012636,2]
[347071477,1735489869776,-3574.32,0.00012636,2]
[347071478,1735489869786,-5169.61,0.00012636,2]
[347071479,1735489869801,-3943.77,0.00012636,2]
[347071480,1735489869810,-3305.08,0.00012636,2]
[347071481,1735489869820,-739.21,0.00012636,2]
[347071482,1735489869831,-7280.0,0.00012636,2]
[347071483,1735489869841,-751.24,0.00012636,2]
[347071484,1735489869850,-719.93,0.00012636,2]
[347071485,1735489869860,-1192.86,0.00012636,2]
[347071486,1735489869869,-1143.16,0.00012636,2]